[Event "*** MasterClass Titled Tuesday Blitz"]
[Site "Chess.com"]
[Date "2017.08.01"]
[Round "3"]
[White "Fablibi"]
[Black "Muracle"]
[Result "0-1"]
[WhiteElo "2483"]
[BlackElo "2439"]
[TimeControl "180+2"]
[EndTime "13:36:07 PDT"]
[Termination "Muracle won by resignation"]

1. g4 {[%clk 0:03:01.9]} 1... d6 {[%clk 0:02:58.4]} 2. Bg2 {[%clk 0:03:00.9]}
2... c6 {[%clk 0:02:58.8]} 3. g5 {[%clk 0:03:01.1]} 3... g6 {[%clk 0:02:59.5]}
4. h4 {[%clk 0:03:00.7]} 4... h6 {[%clk 0:02:59.2]} 5. d4 {[%clk 0:02:56.4]}
5... hxg5 {[%clk 0:02:56.7]} 6. Bxg5 {[%clk 0:02:58.3]} 6... Bg7 {[%clk
0:02:52.9]} 7. c3 {[%clk 0:02:56.2]} 7... Nf6 {[%clk 0:02:47.1]} 8. e4 {[%clk
0:02:48.2]} 8... Qc7 {[%clk 0:02:25.6]} 9. Nd2 {[%clk 0:02:43.9]} 9... Bg4
{[%clk 0:02:17]} 10. f3 {[%clk 0:02:40.4]} 10... Be6 {[%clk 0:02:09.5]} 11. f4
{[%clk 0:02:40.3]} 11... Ng4 {[%clk 0:02:01.8]} 12. Qf3 {[%clk 0:02:35.3]} 12...
f5 {[%clk 0:01:43.8]} 13. Ne2 {[%clk 0:02:24.8]} 13... Na6 {[%clk 0:01:42.8]}
14. Ng3 {[%clk 0:02:24.9]} 14... O-O-O {[%clk 0:01:39.9]} 15. O-O-O {[%clk
0:02:23.2]} 15... Nf6 {[%clk 0:01:32.1]} 16. exf5 {[%clk 0:02:15.9]} 16... gxf5
{[%clk 0:01:32.3]} 17. h5 {[%clk 0:02:16.3]} 17... Bh6 {[%clk 0:01:25.8]} 18.
Qd3 {[%clk 0:02:13.5]} 18... Ng4 {[%clk 0:01:22.9]} 19. Rdf1 {[%clk 0:02:06]}
19... Rdf8 {[%clk 0:01:07.2]} 20. Kb1 {[%clk 0:01:56.2]} 20... d5 {[%clk
0:01:07.2]} 21. Nf3 {[%clk 0:01:52.8]} 21... Qd6 {[%clk 0:01:01.8]} 22. Ne5
{[%clk 0:01:46.8]} 22... Bxg5 {[%clk 0:01:01.4]} 23. fxg5 {[%clk 0:01:36.6]}
23... Nxe5 {[%clk 0:01:00.6]} 24. dxe5 {[%clk 0:01:38.5]} 24... Qxe5 {[%clk
0:01:01.8]} 25. Re1 {[%clk 0:01:34.9]} 25... Qd6 {[%clk 0:00:59.6]} 26. g6
{[%clk 0:01:33.9]} 26... Nc5 {[%clk 0:00:51.6]} 27. Qf3 {[%clk 0:01:30.7]} 27...
Ne4 {[%clk 0:00:41.9]} 28. Rxe4 {[%clk 0:01:05.1]} 28... dxe4 {[%clk 0:00:35.9]}
29. Nxe4 {[%clk 0:01:03.2]} 29... fxe4 {[%clk 0:00:32.2]} 30. g7 {[%clk
0:01:04.1]} 30... exf3 {[%clk 0:00:31.9]} 0-1

[Event "*** MasterClass Titled Tuesday Blitz"]
[Site "Chess.com"]
[Date "2017.08.01"]
[Round "3"]
[White "Jahonas"]
[Black "matej2221"]
[Result "1-0"]
[WhiteElo "2186"]
[BlackElo "2270"]
[TimeControl "180+2"]
[EndTime "13:36:13 PDT"]
[Termination "Jahonas won by resignation"]

1. d4 {[%clk 0:03:02]} 1... d5 {[%clk 0:03:00]} 2. Nf3 {[%clk 0:03:01.9]} 2...
Nf6 {[%clk 0:03:00.6]} 3. c4 {[%clk 0:03:02.6]} 3... c6 {[%clk 0:03:00.8]} 4.
Nc3 {[%clk 0:03:03.8]} 4... a6 {[%clk 0:02:59.8]} 5. cxd5 {[%clk 0:03:04.9]}
5... cxd5 {[%clk 0:03:00.7]} 6. Bf4 {[%clk 0:03:05.7]} 6... Nc6 {[%clk
0:03:01.6]} 7. e3 {[%clk 0:03:07]} 7... e6 {[%clk 0:03:02.8]} 8. Bd3 {[%clk
0:03:07.8]} 8... Bd6 {[%clk 0:02:59.8]} 9. Bxd6 {[%clk 0:03:07.6]} 9... Qxd6
{[%clk 0:03:00.2]} 10. O-O {[%clk 0:03:08.6]} 10... O-O {[%clk 0:03:00.9]} 11.
a3 {[%clk 0:03:07.9]} 11... b5 {[%clk 0:02:59.5]} 12. Qe2 {[%clk 0:03:06.7]}
12... Bb7 {[%clk 0:02:57.2]} 13. Rfc1 {[%clk 0:03:04.5]} 13... Rac8 {[%clk
0:02:47.6]} 14. Nd2 {[%clk 0:03:05]} 14... Na5 {[%clk 0:02:26.4]} 15. b4 {[%clk
0:03:01.3]} 15... Nc4 {[%clk 0:02:25.3]} 16. Nb3 {[%clk 0:03:01.5]} 16... Nd7
{[%clk 0:02:21]} 17. Nc5 {[%clk 0:03:01.7]} 17... Nxc5 {[%clk 0:02:12.4]} 18.
dxc5 {[%clk 0:03:02]} 18... Qe5 {[%clk 0:02:08.4]} 19. a4 {[%clk 0:02:56.1]}
19... bxa4 {[%clk 0:01:46]} 20. Bxc4 {[%clk 0:02:55.9]} 20... dxc4 {[%clk
0:01:45.5]} 21. Qxc4 {[%clk 0:02:46.4]} 21... a5 {[%clk 0:01:43.6]} 22. Nxa4
{[%clk 0:02:46.2]} 22... axb4 {[%clk 0:01:40]} 23. Qxb4 {[%clk 0:02:47.1]} 23...
Bc6 {[%clk 0:01:37]} 24. Nb6 {[%clk 0:02:47]} 24... Qg5 {[%clk 0:01:23.5]} 25.
e4 {[%clk 0:02:42.8]} 25... Rcd8 {[%clk 0:01:18.3]} 26. Rd1 {[%clk 0:02:37.3]}
26... Qg4 {[%clk 0:01:11.1]} 27. f3 {[%clk 0:02:35.5]} 27... Qf4 {[%clk
0:01:11.2]} 28. Qe1 {[%clk 0:02:27]} 28... Qe5 {[%clk 0:01:07.9]} 29. Rac1
{[%clk 0:02:22.7]} 29... Rd4 {[%clk 0:00:55.5]} 30. Rxd4 {[%clk 0:02:22.2]}
30... Qxd4+ {[%clk 0:00:57.4]} 31. Qf2 {[%clk 0:02:23.2]} 31... Qb4 {[%clk
0:00:53.4]} 32. Rd1 {[%clk 0:02:21]} 32... g6 {[%clk 0:00:43.7]} 33. Qd4 {[%clk
0:02:17.2]} 33... Qa5 {[%clk 0:00:38]} 34. h4 {[%clk 0:02:13]} 34... h5 {[%clk
0:00:37.1]} 35. Qe5 {[%clk 0:02:02.2]} 35... Qb4 {[%clk 0:00:24.2]} 36. Kh2
{[%clk 0:01:55.3]} 36... Ba4 {[%clk 0:00:19.8]} 37. Nd7 {[%clk 0:01:43.6]} 37...
Qd4 {[%clk 0:00:21.7]} 38. Rxd4 {[%clk 0:01:41.6]} 1-0

[Event "*** MasterClass Titled Tuesday Blitz"]
[Site "Chess.com"]
[Date "2017.08.01"]
[Round "3"]
[White "prochn"]
[Black "SuperBlitz"]
[Result "0-1"]
[WhiteElo "2247"]
[BlackElo "2278"]
[TimeControl "180+2"]
[EndTime "13:36:33 PDT"]
[Termination "SuperBlitz won by resignation"]

1. d4 {[%clk 0:03:01.9]} 1... Nf6 {[%clk 0:03:00.1]} 2. c4 {[%clk 0:03:02.7]}
2... c6 {[%clk 0:03:00.2]} 3. Nc3 {[%clk 0:03:02.6]} 3... d5 {[%clk 0:03:01.4]}
4. cxd5 {[%clk 0:03:02.9]} 4... cxd5 {[%clk 0:03:02.5]} 5. Bf4 {[%clk
0:03:03.3]} 5... Nc6 {[%clk 0:03:03]} 6. e3 {[%clk 0:03:04.4]} 6... g6 {[%clk
0:03:02.5]} 7. a3 {[%clk 0:02:57.3]} 7... Bg7 {[%clk 0:03:03.6]} 8. Bd3 {[%clk
0:02:52.2]} 8... O-O {[%clk 0:03:04.4]} 9. Nf3 {[%clk 0:02:53.2]} 9... Nh5
{[%clk 0:03:05.7]} 10. Bg3 {[%clk 0:02:53.5]} 10... Nxg3 {[%clk 0:03:05.3]} 11.
hxg3 {[%clk 0:02:55.4]} 11... e5 {[%clk 0:03:06.6]} 12. dxe5 {[%clk 0:02:52]}
12... Nxe5 {[%clk 0:03:07.8]} 13. Nxe5 {[%clk 0:02:38.6]} 13... Bxe5 {[%clk
0:03:08.5]} 14. Rh4 {[%clk 0:02:28.4]} 14... d4 {[%clk 0:02:51.6]} 15. exd4
{[%clk 0:02:14.3]} 15... Bxd4 {[%clk 0:02:51.7]} 16. Kf1 {[%clk 0:02:04.3]}
16... Bf6 {[%clk 0:02:46.1]} 17. Rb4 {[%clk 0:01:26.4]} 17... a5 {[%clk
0:02:40.3]} 18. Rb5 {[%clk 0:01:13.7]} 18... Be6 {[%clk 0:02:32.3]} 19. Rxb7
{[%clk 0:01:01]} 19... Qc8 {[%clk 0:02:09.4]} 20. Qf3 {[%clk 0:00:53.2]} 20...
Rd8 {[%clk 0:01:52]} 21. Be4 {[%clk 0:00:49.6]} 21... Bg7 {[%clk 0:01:25]} 22.
Nd5 {[%clk 0:00:45.8]} 22... Qc4+ {[%clk 0:01:16]} 23. Kg1 {[%clk 0:00:36]}
23... Bxd5 {[%clk 0:01:15]} 24. Bxd5 {[%clk 0:00:33]} 24... Qxd5 {[%clk
0:01:15.4]} 25. Qxd5 {[%clk 0:00:29.5]} 25... Rxd5 {[%clk 0:01:16.2]} 26. Rc1
{[%clk 0:00:31.1]} 26... Re8 {[%clk 0:01:03.8]} 27. b4 {[%clk 0:00:31.8]} 27...
axb4 {[%clk 0:01:01.5]} 28. axb4 {[%clk 0:00:32.8]} 28... Bd4 {[%clk 0:00:58.3]}
29. g4 {[%clk 0:00:21.3]} 29... Rde5 {[%clk 0:00:57.1]} 30. Rcc7 {[%clk
0:00:19.7]} 30... Re1+ {[%clk 0:00:57.9]} 31. Kh2 {[%clk 0:00:20.9]} 31... Be5+
{[%clk 0:00:59.6]} 32. g3 {[%clk 0:00:21.4]} 32... Bxc7 {[%clk 0:01:01.2]} 33.
Rxc7 {[%clk 0:00:23.1]} 33... Rb8 {[%clk 0:01:02.1]} 34. Rc4 {[%clk 0:00:23.1]}
34... Rb1 {[%clk 0:01:03.2]} 0-1

[Event "*** MasterClass Titled Tuesday Blitz"]
[Site "Chess.com"]
[Date "2017.08.01"]
[Round "3"]
[White "pKiLz5Rn9b"]
[Black "LastHeroJr"]
[Result "0-1"]
[WhiteElo "2585"]
[BlackElo "2406"]
[TimeControl "180+2"]
[EndTime "13:36:47 PDT"]
[Termination "LastHeroJr won by resignation"]

1. d4 {[%clk 0:03:01.9]} 1... Nf6 {[%clk 0:02:59.5]} 2. Nf3 {[%clk 0:03:02.6]}
2... g6 {[%clk 0:03:00.2]} 3. Nbd2 {[%clk 0:03:03.5]} 3... Bg7 {[%clk
0:02:58.8]} 4. e4 {[%clk 0:03:04.5]} 4... O-O {[%clk 0:02:59.4]} 5. Be2 {[%clk
0:03:05.2]} 5... c5 {[%clk 0:03:00.5]} 6. dxc5 {[%clk 0:03:02.2]} 6... Qa5
{[%clk 0:03:00.8]} 7. O-O {[%clk 0:02:55.8]} 7... Qxc5 {[%clk 0:03:01.8]} 8. Nb3
{[%clk 0:02:42.6]} 8... Qc7 {[%clk 0:03:01.7]} 9. Bd3 {[%clk 0:02:33.6]} 9...
Nc6 {[%clk 0:03:01.8]} 10. a3 {[%clk 0:02:33.3]} 10... d6 {[%clk 0:02:50.4]} 11.
h3 {[%clk 0:02:34]} 11... b6 {[%clk 0:02:44.1]} 12. Qe2 {[%clk 0:02:31.7]} 12...
Bb7 {[%clk 0:02:41.5]} 13. Re1 {[%clk 0:02:30.4]} 13... Rac8 {[%clk 0:02:41.1]}
14. Bd2 {[%clk 0:02:21.1]} 14... Nd7 {[%clk 0:02:41.8]} 15. Rab1 {[%clk
0:02:19.8]} 15... Nc5 {[%clk 0:02:42.1]} 16. Nxc5 {[%clk 0:02:18.7]} 16... bxc5
{[%clk 0:02:40.1]} 17. Bf4 {[%clk 0:02:16.8]} 17... c4 {[%clk 0:02:17.9]} 18.
Bxc4 {[%clk 0:02:14.8]} 18... Nd4 {[%clk 0:02:18.4]} 19. Nxd4 {[%clk 0:02:07.8]}
19... Qxc4 {[%clk 0:02:19]} 20. Qxc4 {[%clk 0:02:08.1]} 20... Rxc4 {[%clk
0:02:20.9]} 21. c3 {[%clk 0:02:07.5]} 21... e5 {[%clk 0:02:20.7]} 22. Nb5 {[%clk
0:02:02.6]} 22... exf4 {[%clk 0:02:19.2]} 23. Nxd6 {[%clk 0:02:03.8]} 23... Rc7
{[%clk 0:02:20.4]} 24. Rbd1 {[%clk 0:02:04]} 24... Be5 {[%clk 0:02:03.1]} 25.
Nb5 {[%clk 0:02:04.4]} 25... Rc5 {[%clk 0:02:04.2]} 26. a4 {[%clk 0:01:58.5]}
26... a6 {[%clk 0:02:03.8]} 27. Nd6 {[%clk 0:01:56.8]} 27... Bc6 {[%clk
0:01:55.8]} 28. a5 {[%clk 0:01:31.4]} 28... Rxa5 {[%clk 0:01:39.8]} 29. Nc4
{[%clk 0:01:32.5]} 29... Rc5 {[%clk 0:01:40.9]} 30. Nxe5 {[%clk 0:01:33.6]}
30... Rxe5 {[%clk 0:01:42.7]} 31. Rd6 {[%clk 0:01:35.3]} 31... Re6 {[%clk
0:01:32.3]} 32. Rxe6 {[%clk 0:01:32.7]} 32... fxe6 {[%clk 0:01:34.2]} 33. f3
{[%clk 0:01:34.6]} 33... Rb8 {[%clk 0:01:34.7]} 34. b4 {[%clk 0:01:35]} 34...
Bb5 {[%clk 0:01:35.7]} 35. Rc1 {[%clk 0:01:33.1]} 35... Rc8 {[%clk 0:01:33.3]}
36. Kf2 {[%clk 0:01:34.6]} 36... Kf7 {[%clk 0:01:34.4]} 37. Ke1 {[%clk
0:01:36.1]} 37... Ke7 {[%clk 0:01:35]} 38. Kd2 {[%clk 0:01:37.7]} 38... Rd8+
{[%clk 0:01:36]} 39. Kc2 {[%clk 0:01:38.4]} 39... Ba4+ {[%clk 0:01:37.3]} 40.
Kb2 {[%clk 0:01:39.3]} 40... Rd2+ {[%clk 0:01:36.1]} 41. Ka3 {[%clk 0:01:40.5]}
41... Bd7 {[%clk 0:01:35.1]} 42. Rg1 {[%clk 0:01:39]} 42... Kd6 {[%clk
0:01:32.7]} 43. Kb3 {[%clk 0:01:38.3]} 43... Bb5 {[%clk 0:01:32.3]} 44. h4
{[%clk 0:01:25.3]} 44... Ke5 {[%clk 0:01:20.6]} 45. g3 {[%clk 0:01:21.4]} 45...
fxg3 {[%clk 0:01:20]} 46. Rxg3 {[%clk 0:01:22.3]} 46... Kf4 {[%clk 0:01:20.9]}
47. Rh3 {[%clk 0:01:15.5]} 47... Be2 {[%clk 0:01:18.4]} 48. h5 {[%clk
0:01:12.9]} 48... g5 {[%clk 0:01:19.7]} 49. Rh2 {[%clk 0:00:58.3]} 49... Bd1+
{[%clk 0:01:19.6]} 0-1

[Event "*** MasterClass Titled Tuesday Blitz"]
[Site "Chess.com"]
[Date "2017.08.01"]
[Round "3"]
[White "FMVolodymyrSakun"]
[Black "platy3"]
[Result "1-0"]
[WhiteElo "2514"]
[BlackElo "2587"]
[TimeControl "180+2"]
[EndTime "13:36:53 PDT"]
[Termination "FMVolodymyrSakun won by checkmate"]

1. e4 {[%clk 0:03:01.9]} 1... c5 {[%clk 0:02:58.5]} 2. Nf3 {[%clk 0:03:02.7]}
2... Nc6 {[%clk 0:02:59.7]} 3. d4 {[%clk 0:03:03.8]} 3... cxd4 {[%clk
0:03:01.6]} 4. Nxd4 {[%clk 0:03:04.9]} 4... Qb6 {[%clk 0:03:02.5]} 5. Nb3 {[%clk
0:03:05]} 5... Nf6 {[%clk 0:03:03.5]} 6. Nc3 {[%clk 0:03:06.1]} 6... e6 {[%clk
0:03:05.1]} 7. Be3 {[%clk 0:03:07.2]} 7... Qc7 {[%clk 0:03:05.9]} 8. a3 {[%clk
0:03:08.4]} 8... a6 {[%clk 0:03:06.7]} 9. Be2 {[%clk 0:03:09.2]} 9... Be7 {[%clk
0:03:07.2]} 10. O-O {[%clk 0:03:10.1]} 10... b5 {[%clk 0:03:06.7]} 11. f4 {[%clk
0:03:10.6]} 11... d6 {[%clk 0:03:08.2]} 12. Qe1 {[%clk 0:03:11.1]} 12... h5
{[%clk 0:03:05.5]} 13. Rd1 {[%clk 0:03:08.8]} 13... Bb7 {[%clk 0:03:04.1]} 14.
Qg3 {[%clk 0:03:05.6]} 14... g6 {[%clk 0:02:06.8]} 15. Bf3 {[%clk 0:02:52.1]}
15... Nd7 {[%clk 0:01:58]} 16. Qf2 {[%clk 0:02:42.4]} 16... Rc8 {[%clk
0:01:52.7]} 17. Kh1 {[%clk 0:02:31.7]} 17... Qb8 {[%clk 0:01:45.3]} 18. f5
{[%clk 0:02:27.4]} 18... Nde5 {[%clk 0:01:41.8]} 19. Be2 {[%clk 0:02:20.7]}
19... h4 {[%clk 0:01:25]} 20. f6 {[%clk 0:02:12.9]} 20... Bf8 {[%clk 0:01:24.9]}
21. h3 {[%clk 0:02:10.8]} 21... b4 {[%clk 0:01:23.2]} 22. axb4 {[%clk
0:02:09.7]} 22... Nxb4 {[%clk 0:01:25.1]} 23. Nd4 {[%clk 0:02:08.9]} 23... Qa8
{[%clk 0:01:13.3]} 24. Qf4 {[%clk 0:02:00.2]} 24... Nc4 {[%clk 0:00:59.3]} 25.
Bxc4 {[%clk 0:01:53.4]} 25... Rxc4 {[%clk 0:01:01.2]} 26. Nxe6 {[%clk
0:01:40.4]} 26... fxe6 {[%clk 0:01:01.6]} 27. Rxd6 {[%clk 0:01:34.8]} 27... Qc8
{[%clk 0:00:05.4]} 28. f7+ {[%clk 0:01:31.1]} 28... Ke7 {[%clk 0:00:07]} 29. Rd2
{[%clk 0:01:10.7]} 29... Nd5 {[%clk 0:00:07.5]} 30. Qg5+ {[%clk 0:01:03.1]}
30... Kd7 {[%clk 0:00:07.7]} 31. exd5 {[%clk 0:01:02.6]} 31... Kc7 {[%clk
0:00:08.4]} 32. dxe6 {[%clk 0:00:53.7]} 32... Qxe6 {[%clk 0:00:06.4]} 33. Qd8+
{[%clk 0:00:51.5]} 33... Kc6 {[%clk 0:00:07.5]} 34. Qb6# {[%clk 0:00:51.8]} 1-0

[Event "*** MasterClass Titled Tuesday Blitz"]
[Site "Chess.com"]
[Date "2017.08.01"]
[Round "3"]
[White "ChessNinja48"]
[Black "lukas_111111"]
[Result "0-1"]
[WhiteElo "2296"]
[BlackElo "2420"]
[TimeControl "180+2"]
[EndTime "13:36:59 PDT"]
[Termination "lukas_111111 won by checkmate"]

1. d4 {[%clk 0:03:01.5]} 1... Nf6 {[%clk 0:03:00.2]} 2. Nf3 {[%clk 0:03:02.8]}
2... e6 {[%clk 0:03:01.1]} 3. c4 {[%clk 0:03:04]} 3... b6 {[%clk 0:03:02]} 4. a3
{[%clk 0:03:05.4]} 4... Bb7 {[%clk 0:03:02.5]} 5. Nc3 {[%clk 0:03:06.9]} 5... d5
{[%clk 0:03:03.8]} 6. cxd5 {[%clk 0:03:08.3]} 6... Nxd5 {[%clk 0:03:04.8]} 7.
Qc2 {[%clk 0:03:08.7]} 7... Be7 {[%clk 0:03:02.2]} 8. e4 {[%clk 0:03:09.9]} 8...
Nxc3 {[%clk 0:03:02.7]} 9. bxc3 {[%clk 0:03:11.9]} 9... c5 {[%clk 0:03:02.5]}
10. Bd3 {[%clk 0:02:30.7]} 10... Qc7 {[%clk 0:03:01.3]} 11. O-O {[%clk
0:02:29.4]} 11... cxd4 {[%clk 0:03:00.5]} 12. cxd4 {[%clk 0:02:30.4]} 12... Qxc2
{[%clk 0:02:59.9]} 13. Bxc2 {[%clk 0:02:32.4]} 13... O-O {[%clk 0:02:59.6]} 14.
Rd1 {[%clk 0:02:29.2]} 14... Rc8 {[%clk 0:02:55.3]} 15. Bd3 {[%clk 0:02:24.4]}
15... Nd7 {[%clk 0:02:51.8]} 16. Bb2 {[%clk 0:02:09.1]} 16... Nf6 {[%clk
0:02:49.4]} 17. Nd2 {[%clk 0:02:10.3]} 17... Rc7 {[%clk 0:02:38.9]} 18. f3
{[%clk 0:02:08.2]} 18... Rac8 {[%clk 0:02:39.2]} 19. Kf2 {[%clk 0:02:09.4]}
19... Ne8 {[%clk 0:02:30.6]} 20. Ke3 {[%clk 0:02:06]} 20... Nd6 {[%clk
0:02:26.2]} 21. a4 {[%clk 0:01:45.2]} 21... f5 {[%clk 0:02:15.6]} 22. e5 {[%clk
0:00:48.2]} 22... Ne8 {[%clk 0:01:59.3]} 23. a5 {[%clk 0:00:36]} 23... g5 {[%clk
0:01:52]} 24. axb6 {[%clk 0:00:31.4]} 24... axb6 {[%clk 0:01:53.2]} 25. Rdb1
{[%clk 0:00:20.8]} 25... Rd7 {[%clk 0:01:18.5]} 26. g4 {[%clk 0:00:21.2]} 26...
fxg4 {[%clk 0:01:09]} 27. fxg4 {[%clk 0:00:23.2]} 27... Nc7 {[%clk 0:01:10.2]}
28. Ne4 {[%clk 0:00:19.3]} 28... Nd5+ {[%clk 0:01:10.8]} 29. Kf3 {[%clk
0:00:10.8]} 29... Rf8+ {[%clk 0:01:07.1]} 30. Kg3 {[%clk 0:00:10.8]} 30... Nf4
{[%clk 0:01:06.7]} 31. Bc4 {[%clk 0:00:08.9]} 31... Bxe4 {[%clk 0:01:05.7]} 32.
Re1 {[%clk 0:00:10.1]} 32... Bd5 {[%clk 0:01:05.9]} 33. Bf1 {[%clk 0:00:10.6]}
33... Kg7 {[%clk 0:01:01.6]} 34. Ra6 {[%clk 0:00:11.4]} 34... Kg6 {[%clk
0:00:57.9]} 35. Rxb6 {[%clk 0:00:11.3]} 35... h5 {[%clk 0:00:58.9]} 36. gxh5+
{[%clk 0:00:08.3]} 36... Nxh5+ {[%clk 0:00:59.9]} 37. Kh3 {[%clk 0:00:08.9]}
37... Rf3+ {[%clk 0:00:59.3]} 38. Kg4 {[%clk 0:00:08.7]} 38... Rf4+ {[%clk
0:00:59.4]} 39. Kh3 {[%clk 0:00:09.8]} 39... g4# {[%clk 0:01:00.5]} 0-1

[Event "*** MasterClass Titled Tuesday Blitz"]
[Site "Chess.com"]
[Date "2017.08.01"]
[Round "3"]
[White "MMSANCHEZ"]
[Black "Ilja_Semjonovs"]
[Result "1-0"]
[WhiteElo "2308"]
[BlackElo "2400"]
[TimeControl "180+2"]
[EndTime "13:37:00 PDT"]
[Termination "MMSANCHEZ won by resignation"]

1. d4 {[%clk 0:03:01.9]} 1... Nf6 {[%clk 0:03:00.4]} 2. Nf3 {[%clk 0:03:02.1]}
2... c5 {[%clk 0:03:01.3]} 3. d5 {[%clk 0:03:02.8]} 3... e6 {[%clk 0:03:02.1]}
4. Nc3 {[%clk 0:03:03.8]} 4... b5 {[%clk 0:03:01]} 5. Bg5 {[%clk 0:03:00.2]}
5... b4 {[%clk 0:02:40]} 6. Ne4 {[%clk 0:03:00.5]} 6... Bb7 {[%clk 0:02:15.3]}
7. Bxf6 {[%clk 0:02:33.8]} 7... gxf6 {[%clk 0:02:15.1]} 8. c4 {[%clk 0:02:34.7]}
8... bxc3 {[%clk 0:02:14.8]} 9. Nxc3 {[%clk 0:02:35.7]} 9... Qb6 {[%clk
0:01:59.8]} 10. Rb1 {[%clk 0:02:29.7]} 10... Na6 {[%clk 0:01:32.6]} 11. e4
{[%clk 0:02:29.3]} 11... Nc7 {[%clk 0:01:31.7]} 12. Bc4 {[%clk 0:02:28.2]} 12...
Ba6 {[%clk 0:01:14.3]} 13. Qe2 {[%clk 0:02:24]} 13... Bxc4 {[%clk 0:01:07.6]}
14. Qxc4 {[%clk 0:02:24.8]} 14... Qb4 {[%clk 0:01:07.8]} 15. b3 {[%clk
0:02:09.4]} 15... Bd6 {[%clk 0:00:32.9]} 16. O-O {[%clk 0:02:08.1]} 16... Qxc4
{[%clk 0:00:34.1]} 17. bxc4 {[%clk 0:02:08.6]} 17... Ke7 {[%clk 0:00:35.4]} 18.
Rb7 {[%clk 0:02:06.1]} 18... Rhb8 {[%clk 0:00:31]} 19. Rfb1 {[%clk 0:02:06.8]}
19... Rxb7 {[%clk 0:00:32.3]} 20. Rxb7 {[%clk 0:02:07.5]} 20... Ne8 {[%clk
0:00:22.5]} 21. Nb5 {[%clk 0:02:06.7]} 21... a6 {[%clk 0:00:22.1]} 22. Nc3
{[%clk 0:02:05.4]} 22... Rb8 {[%clk 0:00:22]} 23. Rxb8 {[%clk 0:02:05.3]} 23...
Bxb8 {[%clk 0:00:23]} 24. Na4 {[%clk 0:02:06.4]} 24... Ba7 {[%clk 0:00:20.8]}
25. Nd2 {[%clk 0:02:03.6]} 25... Nd6 {[%clk 0:00:21.7]} 26. Kf1 {[%clk
0:02:04.3]} 26... f5 {[%clk 0:00:23.1]} 27. e5 {[%clk 0:02:04.9]} 27... Ne4
{[%clk 0:00:22.7]} 28. Nxe4 {[%clk 0:02:05.3]} 28... fxe4 {[%clk 0:00:23.2]} 29.
d6+ {[%clk 0:02:06.8]} 29... Kd8 {[%clk 0:00:24.5]} 30. Ke2 {[%clk 0:02:08.7]}
30... f5 {[%clk 0:00:23.7]} 31. Ke3 {[%clk 0:02:03.4]} 31... Kc8 {[%clk
0:00:22.6]} 32. Kf4 {[%clk 0:02:04.3]} 32... Kb7 {[%clk 0:00:23.9]} 33. Kg5
{[%clk 0:02:05.6]} 33... Kc6 {[%clk 0:00:24.8]} 34. Kf6 {[%clk 0:02:05.2]} 34...
Bb6 {[%clk 0:00:23.9]} 35. Nxb6 {[%clk 0:01:27.1]} 35... Kxb6 {[%clk 0:00:25.1]}
36. g3 {[%clk 0:01:28.7]} 36... Ka5 {[%clk 0:00:10.4]} 37. Ke7 {[%clk
0:01:29.6]} 37... Kb4 {[%clk 0:00:12.3]} 38. Kxd7 {[%clk 0:01:31]} 38... Kxc4
{[%clk 0:00:14.2]} 39. Kxe6 {[%clk 0:01:31.4]} 39... Kc3 {[%clk 0:00:13.4]} 40.
d7 {[%clk 0:01:32.8]} 40... c4 {[%clk 0:00:15.3]} 41. d8=Q {[%clk 0:01:33.2]}
41... Kb2 {[%clk 0:00:16.2]} 42. Qd4+ {[%clk 0:01:32.9]} 42... c3 {[%clk
0:00:17.3]} 43. Qb4+ {[%clk 0:01:34]} 43... Kc2 {[%clk 0:00:17.6]} 44. Kxf5
{[%clk 0:01:35.1]} 44... Kd3 {[%clk 0:00:18.9]} 45. Qxe4+ {[%clk 0:01:35.7]}
45... Kd2 {[%clk 0:00:20.4]} 46. Qd4+ {[%clk 0:01:36.6]} 46... Kc2 {[%clk
0:00:20.9]} 47. e6 {[%clk 0:01:37.7]} 47... Kb2 {[%clk 0:00:22]} 48. e7 {[%clk
0:01:38.5]} 1-0

[Event "*** MasterClass Titled Tuesday Blitz"]
[Site "Chess.com"]
[Date "2017.08.01"]
[Round "3"]
[White "attack2mateU"]
[Black "Jungle_Jaguar"]
[Result "1-0"]
[WhiteElo "2497"]
[BlackElo "2322"]
[TimeControl "180+2"]
[EndTime "13:37:07 PDT"]
[Termination "attack2mateU won by checkmate"]

1. e4 {[%clk 0:03:01.9]} 1... e5 {[%clk 0:02:59.5]} 2. Nf3 {[%clk 0:03:02.9]}
2... Nf6 {[%clk 0:03:00.7]} 3. Nxe5 {[%clk 0:03:03.3]} 3... d6 {[%clk 0:03:02]}
4. Nf3 {[%clk 0:03:04.4]} 4... Nxe4 {[%clk 0:03:03]} 5. Nc3 {[%clk 0:03:06.1]}
5... Nxc3 {[%clk 0:03:03.8]} 6. dxc3 {[%clk 0:03:06.7]} 6... Be7 {[%clk
0:03:05.2]} 7. Be3 {[%clk 0:03:06.4]} 7... Nc6 {[%clk 0:03:03.9]} 8. Qd2 {[%clk
0:03:07.6]} 8... Be6 {[%clk 0:03:05.2]} 9. O-O-O {[%clk 0:03:08]} 9... Qd7
{[%clk 0:03:06.5]} 10. h4 {[%clk 0:03:07.9]} 10... O-O-O {[%clk 0:03:07.2]} 11.
Ng5 {[%clk 0:03:07.6]} 11... h6 {[%clk 0:03:04.3]} 12. Nxe6 {[%clk 0:03:07.3]}
12... fxe6 {[%clk 0:03:04.5]} 13. g3 {[%clk 0:03:00.2]} 13... d5 {[%clk
0:00:03.3]} 14. Bh3 {[%clk 0:02:58.7]} 14... Bd6 {[%clk 0:00:04.2]} 15. f4
{[%clk 0:02:56.5]} 15... Kb8 {[%clk 0:00:05.5]} 16. c4 {[%clk 0:02:45]} 16...
Ne7 {[%clk 0:00:05.9]} 17. c5 {[%clk 0:02:45]} 17... Bxc5 {[%clk 0:00:06.4]} 18.
Bxc5 {[%clk 0:02:45.7]} 18... Nf5 {[%clk 0:00:08.3]} 19. Qc3 {[%clk 0:02:33.5]}
19... b6 {[%clk 0:00:08.9]} 20. Bxf5 {[%clk 0:02:31.9]} 20... exf5 {[%clk
0:00:09.6]} 21. Bd4 {[%clk 0:02:33.1]} 21... Rhg8 {[%clk 0:00:10.9]} 22. Rde1
{[%clk 0:02:24.5]} 22... Kb7 {[%clk 0:00:11.8]} 23. h5 {[%clk 0:02:14]} 23... c5
{[%clk 0:00:12.3]} 24. Be5 {[%clk 0:02:15]} 24... Qc6 {[%clk 0:00:11.9]} 25. Qf3
{[%clk 0:02:13.2]} 25... Rd7 {[%clk 0:00:12.8]} 26. g4 {[%clk 0:02:12.7]} 26...
fxg4 {[%clk 0:00:13.4]} 27. Qxg4 {[%clk 0:02:14.6]} 27... d4 {[%clk 0:00:14.9]}
28. Rhg1 {[%clk 0:02:13]} 28... d3 {[%clk 0:00:15]} 29. cxd3 {[%clk 0:02:13]}
29... Ka6 {[%clk 0:00:15]} 30. Bc3 {[%clk 0:02:05.3]} 30... Rxd3 {[%clk
0:00:15]} 31. Re6 {[%clk 0:01:59.7]} 31... Qd5 {[%clk 0:00:14.7]} 32. Qe2 {[%clk
0:01:56.3]} 32... Rd8 {[%clk 0:00:13.5]} 33. Rd1 {[%clk 0:01:55.3]} 33... c4
{[%clk 0:00:12.5]} 34. Rxd3 {[%clk 0:01:47.4]} 34... cxd3 {[%clk 0:00:13.5]} 35.
Qe4 {[%clk 0:01:48]} 35... d2+ {[%clk 0:00:14.2]} 36. Kd1 {[%clk 0:01:48.3]}
36... Qxa2 {[%clk 0:00:13.1]} 37. Qe2+ {[%clk 0:01:38]} 37... Kb7 {[%clk
0:00:09.6]} 38. Re7+ {[%clk 0:01:39.5]} 38... Kc6 {[%clk 0:00:08.2]} 39. Qe6+
{[%clk 0:01:32.2]} 39... Qxe6 {[%clk 0:00:09.3]} 40. Rxe6+ {[%clk 0:01:34.1]}
40... Kd5 {[%clk 0:00:10.8]} 41. Re2 {[%clk 0:01:25.3]} 41... Rf8 {[%clk
0:00:11.6]} 42. Rxd2+ {[%clk 0:01:22.7]} 42... Kc4 {[%clk 0:00:12.2]} 43. Rd4+
{[%clk 0:01:17.3]} 43... Kb3 {[%clk 0:00:13.6]} 44. Rb4+ {[%clk 0:01:17.9]}
44... Ka2 {[%clk 0:00:15.1]} 45. Kc2 {[%clk 0:01:19.4]} 45... a5 {[%clk
0:00:15.3]} 46. Ra4# {[%clk 0:01:20.7]} 1-0